[Event "*** Titled Tuesday Blitz"]
[Site "Chess.com"]
[Date "2019.09.03"]
[Round "10"]
[White "eljanov"]
[Black "Sanan_Sjugirov"]
[Result "0-1"]
[WhiteElo "2927"]
[BlackElo "2885"]
[TimeControl "180+2"]
[EndTime "17:21:44 PDT"]
[Termination "Sanan_Sjugirov won by resignation"]

1. Nf3 {[%clk 0:03:01.9]} 1... d5 {[%clk 0:02:56.1]} 2. g3 {[%clk 0:03:02.3]}
2... Bg4 {[%clk 0:02:53.4]} 3. Bg2 {[%clk 0:03:02.8]} 3... Nd7 {[%clk
0:02:53.9]} 4. h3 {[%clk 0:03:00.5]} 4... Bh5 {[%clk 0:02:51.7]} 5. d4 {[%clk
0:02:56.8]} 5... e6 {[%clk 0:02:50.6]} 6. O-O {[%clk 0:02:57.5]} 6... Ngf6
{[%clk 0:02:49.4]} 7. c4 {[%clk 0:02:58.4]} 7... c6 {[%clk 0:02:47.1]} 8. cxd5
{[%clk 0:02:58.8]} 8... exd5 {[%clk 0:02:42.1]} 9. Qb3 {[%clk 0:02:59.7]} 9...
Qb6 {[%clk 0:02:42.9]} 10. Qe3+ {[%clk 0:02:59.6]} 10... Be7 {[%clk 0:02:44.3]}
11. Nc3 {[%clk 0:03:00.7]} 11... Qd8 {[%clk 0:02:38.6]} 12. Ne5 {[%clk
0:02:31.8]} 12... Nxe5 {[%clk 0:02:30.1]} 13. dxe5 {[%clk 0:02:31.6]} 13... d4
{[%clk 0:02:21.6]} 14. Qg5 {[%clk 0:02:24.7]} 14... Bg6 {[%clk 0:02:03.1]} 15.
exf6 {[%clk 0:02:23]} 15... Bxf6 {[%clk 0:02:05]} 16. Qc5 {[%clk 0:02:03.8]}
16... dxc3 {[%clk 0:02:05.4]} 17. bxc3 {[%clk 0:02:04.2]} 17... Be7 {[%clk
0:02:01.5]} 18. Qc4 {[%clk 0:02:02.8]} 18... O-O {[%clk 0:01:59]} 19. Bf4 {[%clk
0:01:56.5]} 19... Qa5 {[%clk 0:01:55.6]} 20. Rad1 {[%clk 0:01:26.6]} 20... Bf5
{[%clk 0:01:48.3]} 21. Qb3 {[%clk 0:01:18.9]} 21... Qa6 {[%clk 0:01:39.2]} 22.
c4 {[%clk 0:01:12.5]} 22... Rad8 {[%clk 0:01:29.3]} 23. Rxd8 {[%clk 0:00:34.6]}
23... Rxd8 {[%clk 0:01:29.5]} 24. Rc1 {[%clk 0:00:36.5]} 24... Be6 {[%clk
0:01:15]} 25. Be3 {[%clk 0:00:37.2]} 25... Rd7 {[%clk 0:01:09.6]} 26. a4 {[%clk
0:00:37.9]} 26... h6 {[%clk 0:01:04.5]} 27. h4 {[%clk 0:00:38.8]} 27... Qa5
{[%clk 0:01:02.2]} 28. Bf3 {[%clk 0:00:38.3]} 28... Bc5 {[%clk 0:00:57.3]} 29.
Bxc5 {[%clk 0:00:38.2]} 29... Qxc5 {[%clk 0:00:59.2]} 30. Kg2 {[%clk 0:00:39.4]}
30... a5 {[%clk 0:00:52.8]} 31. e3 {[%clk 0:00:34.7]} 31... Rd2 {[%clk
0:00:38.9]} 32. Qc3 {[%clk 0:00:29.8]} 32... Qb4 {[%clk 0:00:33.9]} 33. Qxb4
{[%clk 0:00:28.9]} 33... axb4 {[%clk 0:00:35.8]} 34. Rb1 {[%clk 0:00:28.9]}
34... c5 {[%clk 0:00:32.2]} 35. Bxb7 {[%clk 0:00:29.2]} 35... Ra2 {[%clk
0:00:25.2]} 36. Bd5 {[%clk 0:00:18.7]} 36... Bxd5+ {[%clk 0:00:20.6]} 37. cxd5
{[%clk 0:00:19.5]} 37... Rxa4 {[%clk 0:00:22.3]} 38. Kf3 {[%clk 0:00:20]} 38...
c4 {[%clk 0:00:21]} 39. Ke4 {[%clk 0:00:17.8]} 39... Kf8 {[%clk 0:00:09.1]} 40.
Kd4 {[%clk 0:00:18.5]} 40... c3 {[%clk 0:00:10.2]} 41. Kc4 {[%clk 0:00:17.8]}
41... Ke7 {[%clk 0:00:05.7]} 42. e4 {[%clk 0:00:17.9]} 42... Kd6 {[%clk
0:00:06.1]} 43. f3 {[%clk 0:00:17.6]} 43... f5 {[%clk 0:00:06.4]} 44. exf5
{[%clk 0:00:18.5]} 44... c2 {[%clk 0:00:04.1]} 45. Rc1 {[%clk 0:00:19.3]} 45...
Ra3 {[%clk 0:00:05.4]} 46. Rxc2 {[%clk 0:00:14.3]} 46... Rxf3 {[%clk 0:00:05.9]}
47. Kxb4 {[%clk 0:00:14.7]} 47... Kxd5 {[%clk 0:00:06.1]} 48. Rc5+ {[%clk
0:00:08.9]} 48... Ke4 {[%clk 0:00:06.5]} 49. f6 {[%clk 0:00:09.2]} 49... Rxf6
{[%clk 0:00:05.5]} 50. Rc7 {[%clk 0:00:06.8]} 50... Rg6 {[%clk 0:00:06]} 51. Kc5
{[%clk 0:00:04]} 51... Rxg3 {[%clk 0:00:06.2]} 52. Re7+ {[%clk 0:00:04.1]} 52...
Kf5 {[%clk 0:00:06.7]} 53. Kd4 {[%clk 0:00:05.3]} 53... g6 {[%clk 0:00:07.2]}
54. Rh7 {[%clk 0:00:04.1]} 54... h5 {[%clk 0:00:08]} 55. Rf7+ {[%clk 0:00:04.5]}
55... Kg4 {[%clk 0:00:09.2]} 56. Ke4 {[%clk 0:00:05.5]} 56... Kxh4 {[%clk
0:00:10.1]} 57. Kf4 {[%clk 0:00:06.4]} 57... g5+ {[%clk 0:00:10]} 0-1

[Event "*** Titled Tuesday Blitz"]
[Site "Chess.com"]
[Date "2019.09.03"]
[Round "10"]
[White "Sutormin_DA"]
[Black "WPWPWP-2015"]
[Result "1-0"]
[WhiteElo "2610"]
[BlackElo "2445"]
[TimeControl "180+2"]
[EndTime "17:22:45 PDT"]
[Termination "Sutormin_DA won by checkmate"]

1. e4 {[%clk 0:03:01.6]} 1... c5 {[%clk 0:02:59.6]} 2. c3 {[%clk 0:03:01.8]}
2... Nf6 {[%clk 0:03:00.1]} 3. e5 {[%clk 0:03:01.2]} 3... Nd5 {[%clk 0:03:01.2]}
4. d4 {[%clk 0:03:03.1]} 4... cxd4 {[%clk 0:03:01.3]} 5. Nf3 {[%clk 0:03:05]}
5... d6 {[%clk 0:03:02.1]} 6. cxd4 {[%clk 0:03:06.6]} 6... e6 {[%clk 0:03:00.6]}
7. Bc4 {[%clk 0:03:07.5]} 7... Be7 {[%clk 0:03:01.6]} 8. O-O {[%clk 0:03:08.6]}
8... O-O {[%clk 0:03:02.5]} 9. Bd2 {[%clk 0:03:10]} 9... b6 {[%clk 0:03:03.4]}
10. Qe2 {[%clk 0:03:09.6]} 10... Bb7 {[%clk 0:03:02.5]} 11. Rd1 {[%clk
0:03:10.5]} 11... Nd7 {[%clk 0:02:58.6]} 12. Nc3 {[%clk 0:03:02.1]} 12... Nxc3
{[%clk 0:02:54.7]} 13. Bxc3 {[%clk 0:03:04]} 13... dxe5 {[%clk 0:02:47.9]} 14.
dxe5 {[%clk 0:03:03.6]} 14... Qc7 {[%clk 0:02:41.6]} 15. Rac1 {[%clk 0:03:02.2]}
15... Rfd8 {[%clk 0:01:48.6]} 16. Bd3 {[%clk 0:02:55.7]} 16... Nc5 {[%clk
0:01:41.1]} 17. Bc2 {[%clk 0:02:47.8]} 17... Rxd1+ {[%clk 0:01:40.6]} 18. Rxd1
{[%clk 0:02:49.7]} 18... Rd8 {[%clk 0:01:40.4]} 19. h4 {[%clk 0:02:35.3]} 19...
a5 {[%clk 0:01:34.1]} 20. h5 {[%clk 0:02:32.6]} 20... h6 {[%clk 0:01:30.2]} 21.
a3 {[%clk 0:02:29.9]} 21... Rxd1+ {[%clk 0:01:29]} 22. Qxd1 {[%clk 0:02:30.4]}
22... Be4 {[%clk 0:01:14.5]} 23. b4 {[%clk 0:01:16.2]} 23... Bxc2 {[%clk
0:01:09.2]} 24. Qxc2 {[%clk 0:01:18.1]} 24... Nd7 {[%clk 0:00:58.9]} 25. Qd3
{[%clk 0:01:12.8]} 25... axb4 {[%clk 0:00:55.6]} 26. axb4 {[%clk 0:01:12.8]}
26... Nf8 {[%clk 0:00:48.2]} 27. Bd2 {[%clk 0:01:12.3]} 27... Qc6 {[%clk
0:00:43.5]} 28. Be3 {[%clk 0:01:08.8]} 28... Bxb4 {[%clk 0:00:41]} 29. Nd4
{[%clk 0:01:06.2]} 29... Qd5 {[%clk 0:00:39.2]} 30. Qb3 {[%clk 0:00:57.2]} 30...
Bc5 {[%clk 0:00:38.1]} 31. Qxd5 {[%clk 0:00:46.4]} 31... exd5 {[%clk 0:00:38.6]}
32. Nf5 {[%clk 0:00:47.7]} 32... Kh7 {[%clk 0:00:32.5]} 33. Kf1 {[%clk
0:00:35.7]} 33... Ne6 {[%clk 0:00:31]} 34. Ke2 {[%clk 0:00:33.3]} 34... d4
{[%clk 0:00:30.2]} 35. Bd2 {[%clk 0:00:32.9]} 35... g6 {[%clk 0:00:28]} 36.
hxg6+ {[%clk 0:00:30.8]} 36... fxg6 {[%clk 0:00:26.8]} 37. Nxh6 {[%clk
0:00:30.3]} 37... b5 {[%clk 0:00:25.8]} 38. Ng4 {[%clk 0:00:28.7]} 38... Kg7
{[%clk 0:00:24.2]} 39. Nf6 {[%clk 0:00:28]} 39... Bb6 {[%clk 0:00:19.5]} 40. Nd7
{[%clk 0:00:21]} 40... Bc7 {[%clk 0:00:18.8]} 41. f4 {[%clk 0:00:22.4]} 41...
Kf7 {[%clk 0:00:17.3]} 42. g4 {[%clk 0:00:21.3]} 42... Ke7 {[%clk 0:00:16.7]}
43. Nf6 {[%clk 0:00:22.9]} 43... Bb8 {[%clk 0:00:08.8]} 44. Nd5+ {[%clk
0:00:22.3]} 44... Kf7 {[%clk 0:00:09.1]} 45. Kd3 {[%clk 0:00:23.4]} 45... Ba7
{[%clk 0:00:07]} 46. f5 {[%clk 0:00:20.6]} 46... gxf5 {[%clk 0:00:07.7]} 47.
gxf5 {[%clk 0:00:22.5]} 47... Ng7 {[%clk 0:00:08.5]} 48. Ke4 {[%clk 0:00:23.6]}
48... Bc5 {[%clk 0:00:07.7]} 49. Nc7 {[%clk 0:00:21.3]} 49... b4 {[%clk
0:00:06.8]} 50. e6+ {[%clk 0:00:22.8]} 50... Kf8 {[%clk 0:00:06.9]} 51. f6
{[%clk 0:00:22.3]} 51... Nh5 {[%clk 0:00:03.8]} 52. Bh6+ {[%clk 0:00:21.8]}
52... Kg8 {[%clk 0:00:05]} 53. Kf5 {[%clk 0:00:21.6]} 53... Nxf6 {[%clk
0:00:04.6]} 54. Kxf6 {[%clk 0:00:21.7]} 54... b3 {[%clk 0:00:05.9]} 55. Bc1
{[%clk 0:00:21.2]} 55... d3 {[%clk 0:00:07.1]} 56. Nd5 {[%clk 0:00:17.8]} 56...
d2 {[%clk 0:00:07.5]} 57. Bxd2 {[%clk 0:00:19.1]} 57... b2 {[%clk 0:00:08.7]}
58. Nc3 {[%clk 0:00:20.2]} 58... Bd4+ {[%clk 0:00:08.3]} 59. Kg6 {[%clk
0:00:21.7]} 59... Bc5 {[%clk 0:00:03.3]} 60. Nb1 {[%clk 0:00:20.5]} 60... Kf8
{[%clk 0:00:04.1]} 61. Kf6 {[%clk 0:00:21.5]} 61... Bd4+ {[%clk 0:00:04.3]} 62.
Kf5 {[%clk 0:00:23]} 62... Ke7 {[%clk 0:00:03.3]} 63. Bb4+ {[%clk 0:00:23.9]}
63... Ke8 {[%clk 0:00:04.6]} 64. Bc3 {[%clk 0:00:25.4]} 64... Bxc3 {[%clk
0:00:04.5]} 65. Nxc3 {[%clk 0:00:26.7]} 65... Ke7 {[%clk 0:00:05.7]} 66. Ke5
{[%clk 0:00:28]} 66... Ke8 {[%clk 0:00:06.9]} 67. Nb1 {[%clk 0:00:29.5]} 67...
Ke7 {[%clk 0:00:07.9]} 68. Kd5 {[%clk 0:00:31.1]} 68... Ke8 {[%clk 0:00:08.4]}
69. Kd6 {[%clk 0:00:32.5]} 69... Kd8 {[%clk 0:00:09.6]} 70. Nc3 {[%clk
0:00:33.2]} 70... Ke8 {[%clk 0:00:07.5]} 71. e7 {[%clk 0:00:34.6]} 71... Kf7
{[%clk 0:00:03]} 72. Nb1 {[%clk 0:00:36.5]} 72... Ke8 {[%clk 0:00:03.7]} 73. Nc3
{[%clk 0:00:38.1]} 73... Kf7 {[%clk 0:00:04.3]} 74. Kd7 {[%clk 0:00:39.7]} 74...
b1=Q {[%clk 0:00:04.5]} 75. e8=Q+ {[%clk 0:00:41.6]} 75... Kf6 {[%clk
0:00:05.7]} 76. Nxb1 {[%clk 0:00:43.5]} 76... Kf5 {[%clk 0:00:07]} 77. Qe6+
{[%clk 0:00:45]} 77... Kf4 {[%clk 0:00:08.6]} 78. Nc3 {[%clk 0:00:46.5]} 78...
Kg5 {[%clk 0:00:10.2]} 79. Qf7 {[%clk 0:00:47.4]} 79... Kh6 {[%clk 0:00:10.9]}
80. Qg8 {[%clk 0:00:48.2]} 80... Kh5 {[%clk 0:00:11.8]} 81. Ke6 {[%clk
0:00:49.7]} 81... Kh6 {[%clk 0:00:13.4]} 82. Ne4 {[%clk 0:00:50.9]} 82... Kh5
{[%clk 0:00:15.3]} 83. Qg5# {[%clk 0:00:52.5]} 1-0

[Event "*** Titled Tuesday Blitz"]
[Site "Chess.com"]
[Date "2019.09.03"]
[Round "10"]
[White "NTBT_DHS"]
[Black "kuli4ik"]
[Result "1-0"]
[WhiteElo "2737"]
[BlackElo "2798"]
[TimeControl "180+2"]
[EndTime "17:23:13 PDT"]
[Termination "NTBT_DHS won on time"]

1. d4 {[%clk 0:03:01.9]} 1... g6 {[%clk 0:02:59.7]} 2. c4 {[%clk 0:02:59.9]}
2... Bg7 {[%clk 0:03:01.6]} 3. Nc3 {[%clk 0:03:01]} 3... d6 {[%clk 0:03:03]} 4.
e4 {[%clk 0:03:02.2]} 4... e5 {[%clk 0:03:03.3]} 5. d5 {[%clk 0:03:02.4]} 5...
a5 {[%clk 0:03:02.9]} 6. f3 {[%clk 0:03:01.8]} 6... Na6 {[%clk 0:03:02.7]} 7.
Be3 {[%clk 0:03:02.3]} 7... Bh6 {[%clk 0:03:02.5]} 8. Bxh6 {[%clk 0:03:01.7]}
8... Nxh6 {[%clk 0:03:03]} 9. Qd2 {[%clk 0:03:02.5]} 9... Ng8 {[%clk 0:03:02.7]}
10. Nge2 {[%clk 0:02:54.5]} 10... f5 {[%clk 0:03:02.7]} 11. exf5 {[%clk
0:02:49.6]} 11... gxf5 {[%clk 0:03:02.8]} 12. f4 {[%clk 0:02:48.5]} 12... Ne7
{[%clk 0:02:57.9]} 13. O-O-O {[%clk 0:02:45.9]} 13... O-O {[%clk 0:02:57.8]} 14.
h4 {[%clk 0:02:38.4]} 14... Ng6 {[%clk 0:02:53.5]} 15. g3 {[%clk 0:02:32.7]}
15... Qf6 {[%clk 0:02:44.7]} 16. h5 {[%clk 0:02:16.9]} 16... Nh8 {[%clk
0:02:44.8]} 17. Kb1 {[%clk 0:02:11.8]} 17... Nf7 {[%clk 0:02:45.3]} 18. Nc1
{[%clk 0:02:11.9]} 18... e4 {[%clk 0:02:45.2]} 19. Nb3 {[%clk 0:02:09.8]} 19...
b6 {[%clk 0:02:45.1]} 20. Nd4 {[%clk 0:02:08.6]} 20... Nh6 {[%clk 0:02:42.9]}
21. Bh3 {[%clk 0:02:08.8]} 21... Nc5 {[%clk 0:02:40.2]} 22. Rdg1 {[%clk
0:02:09.1]} 22... Kh8 {[%clk 0:02:40.8]} 23. Ncb5 {[%clk 0:02:05.5]} 23... Rf7
{[%clk 0:02:39.9]} 24. Bf1 {[%clk 0:01:55]} 24... Ba6 {[%clk 0:02:36.8]} 25. Nc3
{[%clk 0:01:50.4]} 25... Rg8 {[%clk 0:02:36.2]} 26. Qe3 {[%clk 0:01:47.3]} 26...
Rfg7 {[%clk 0:02:36.3]} 27. Be2 {[%clk 0:01:38.8]} 27... Ng4 {[%clk 0:02:33.3]}
28. Bxg4 {[%clk 0:01:38.1]} 28... Rxg4 {[%clk 0:02:35.2]} 29. b3 {[%clk
0:01:29.2]} 29... a4 {[%clk 0:02:33.4]} 30. Nd1 {[%clk 0:01:22.8]} 30... axb3
{[%clk 0:02:27.4]} 31. axb3 {[%clk 0:01:24.7]} 31... Bc8 {[%clk 0:01:36.7]} 32.
Nf2 {[%clk 0:01:19]} 32... R4g7 {[%clk 0:01:36.8]} 33. h6 {[%clk 0:01:20.5]}
33... Rg6 {[%clk 0:01:35.8]} 34. g4 {[%clk 0:00:52.4]} 34... fxg4 {[%clk
0:01:34.1]} 35. b4 {[%clk 0:00:53.9]} 35... g3 {[%clk 0:01:32.3]} 36. bxc5
{[%clk 0:00:21.4]} 36... bxc5 {[%clk 0:01:31]} 37. Nxe4 {[%clk 0:00:20.3]} 37...
Qxd4 {[%clk 0:01:29.9]} 38. Qxd4+ {[%clk 0:00:21.3]} 38... cxd4 {[%clk
0:01:30.7]} 39. Ng5 {[%clk 0:00:22.9]} 39... Rf8 {[%clk 0:01:27.9]} 40. Rxg3
{[%clk 0:00:22.1]} 40... Rxf4 {[%clk 0:01:00.8]} 41. Re1 {[%clk 0:00:22.4]}
41... Rf8 {[%clk 0:01:00.5]} 42. Re7 {[%clk 0:00:21.3]} 42... Kg8 {[%clk
0:00:46.2]} 43. Rxc7 {[%clk 0:00:14.7]} 43... Bf5+ {[%clk 0:00:43.5]} 44. Kc1
{[%clk 0:00:15.8]} 44... Rc8 {[%clk 0:00:42.1]} 45. Rxc8+ {[%clk 0:00:14.3]}
45... Bxc8 {[%clk 0:00:43.1]} 46. Kd2 {[%clk 0:00:13.8]} 46... Bf5 {[%clk
0:00:43.2]} 47. Rg1 {[%clk 0:00:14.7]} 47... Rxh6 {[%clk 0:00:31.9]} 48. Nf3+
{[%clk 0:00:13.3]} 48... Kf7 {[%clk 0:00:29.1]} 49. Nxd4 {[%clk 0:00:13.1]}
49... Bg6 {[%clk 0:00:30.1]} 50. Rf1+ {[%clk 0:00:13.3]} 50... Ke7 {[%clk
0:00:30.9]} 51. Nc6+ {[%clk 0:00:13.6]} 51... Kd7 {[%clk 0:00:32]} 52. Ra1
{[%clk 0:00:15.1]} 52... Kc7 {[%clk 0:00:30]} 53. Kc3 {[%clk 0:00:15.1]} 53...
Rh2 {[%clk 0:00:27.3]} 54. Ra6 {[%clk 0:00:13.9]} 54... h5 {[%clk 0:00:23.5]}
55. Nd4 {[%clk 0:00:14.2]} 55... Be8 {[%clk 0:00:19.4]} 56. Ne6+ {[%clk
0:00:14.3]} 56... Kd7 {[%clk 0:00:18.7]} 57. Ra7+ {[%clk 0:00:14.9]} 57... Kc8
{[%clk 0:00:19.9]} 58. Rc7+ {[%clk 0:00:15.5]} 58... Kb8 {[%clk 0:00:20.9]} 59.
Rg7 {[%clk 0:00:15.2]} 59... Ba4 {[%clk 0:00:18.4]} 60. Kb4 {[%clk 0:00:13.7]}
60... Ra2 {[%clk 0:00:17.5]} 61. Rh7 {[%clk 0:00:12.5]} 61... Bd1 {[%clk
0:00:13.4]} 62. Nd4 {[%clk 0:00:11.4]} 62... Bg4 {[%clk 0:00:11.2]} 63. Nb5
{[%clk 0:00:10.5]} 63... Ra6 {[%clk 0:00:10.4]} 64. Rh6 {[%clk 0:00:10.3]} 64...
Bd7 {[%clk 0:00:09.6]} 65. Nxd6 {[%clk 0:00:10.4]} 65... Kc7 {[%clk 0:00:10.9]}
66. Kc5 {[%clk 0:00:07.4]} 66... Ra5+ {[%clk 0:00:10.5]} 67. Nb5+ {[%clk
0:00:07.8]} 67... Bxb5 {[%clk 0:00:10.5]} 68. cxb5 {[%clk 0:00:09.7]} 68... Ra1
{[%clk 0:00:11.7]} 69. Rh7+ {[%clk 0:00:10.7]} 69... Kd8 {[%clk 0:00:12.6]} 70.
Kd6 {[%clk 0:00:10.5]} 70... Kc8 {[%clk 0:00:12]} 71. Rxh5 {[%clk 0:00:11.1]}
71... Rd1 {[%clk 0:00:12.1]} 72. Rh7 {[%clk 0:00:11]} 72... Rb1 {[%clk
0:00:11.5]} 73. Rc7+ {[%clk 0:00:10.6]} 73... Kd8 {[%clk 0:00:10.6]} 74. Rc5
{[%clk 0:00:12.5]} 74... Rb2 {[%clk 0:00:10]} 75. Kc6 {[%clk 0:00:13.7]} 75...
Kc8 {[%clk 0:00:11.3]} 76. d6 {[%clk 0:00:14.4]} 76... Re2 {[%clk 0:00:10.5]}
77. b6 {[%clk 0:00:13.2]} 77... Rd2 {[%clk 0:00:10.4]} 78. b7+ {[%clk
0:00:12.9]} 78... Kb8 {[%clk 0:00:11.5]} 79. d7 {[%clk 0:00:08.3]} 79... Rd1
{[%clk 0:00:12.5]} 80. Rd5 {[%clk 0:00:09.2]} 80... Rc1+ {[%clk 0:00:13.4]} 81.
Kd6 {[%clk 0:00:09.9]} 81... Kxb7 {[%clk 0:00:13.4]} 82. d8=Q {[%clk 0:00:09.9]}
1-0